[Event "Titled Tuesday Blitz May 16 Late 2023"]
[White "Mirimanian, Hayk"]
[Black "Trost, Edvin"]
[WhiteFideId "4700180"]
[BlackFideId "1729519"]
[WhiteElo "2280"]
[BlackElo "2368"]
[Result "1/2-1/2"]
[Round "04"]
[TimeControl "180+2"]
[Date "2023.05.16"]
[WhiteClock "0:00:23"]
[BlackClock "0:01:05"]

1. e4 {[%clk 0:03:00]}  c5 {[%clk 0:02:55]} 2. Nf3 {[%clk 0:02:58]}  d6 {[%clk 0:02:52]} 3. d4 {[%clk 0:02:47]}  cxd4 {[%clk 0:02:53]} 4. Nxd4 {[%clk 0:02:48]}  Nf6 {[%clk 0:02:50]} 5. Nc3 {[%clk 0:02:46]}  g6 {[%clk 0:02:50]} 6. Be3 {[%clk 0:02:41]}  Nc6 {[%clk 0:02:46]} 7. f3 {[%clk 0:02:38]}  h5 {[%clk 0:02:46]} 8. Qd2 {[%clk 0:02:36]}  Nxd4 {[%clk 0:02:46]} 9. Bxd4 {[%clk 0:02:35]}  Bh6 {[%clk 0:02:46]} 10. Be3 {[%clk 0:02:33]}  Bxe3 {[%clk 0:02:46]} 11. Qxe3 {[%clk 0:02:34]}  Qa5 {[%clk 0:02:37]} 12. Bc4 {[%clk 0:02:28]}  Kf8 {[%clk 0:02:33]} 13. O-O-O {[%clk 0:02:17]}  Kg7 {[%clk 0:02:31]} 14. Rhe1 {[%clk 0:02:12]}  Bd7 {[%clk 0:02:08]} 15. e5 {[%clk 0:02:10]}  dxe5 {[%clk 0:02:08]} 16. Qxe5 {[%clk 0:02:11]}  Qxe5 {[%clk 0:02:06]} 17. Rxe5 {[%clk 0:02:12]}  e6 {[%clk 0:02:07]} 18. Ne4 {[%clk 0:02:09]}  Bc6 {[%clk 0:02:05]} 19. Nxf6 {[%clk 0:01:44]}  Kxf6 {[%clk 0:02:06]} 20. Rc5 {[%clk 0:01:45]}  Rad8 {[%clk 0:02:02]} 21. Bb5 {[%clk 0:01:42]}  Bxb5 {[%clk 0:01:55]} 22. Rxb5 {[%clk 0:01:41]}  b6 {[%clk 0:01:56]} 23. a4 {[%clk 0:01:36]}  h4 {[%clk 0:01:52]} 24. a5 {[%clk 0:01:35]}  Rxd1+ {[%clk 0:01:48]} 25. Kxd1 {[%clk 0:01:35]}  Rd8+ {[%clk 0:01:47]} 26. Ke2 {[%clk 0:01:35]}  Rd6 {[%clk 0:01:46]} 27. axb6 {[%clk 0:01:35]}  axb6 {[%clk 0:01:47]} 28. Ke3 {[%clk 0:01:28]}  e5 {[%clk 0:01:47]} 29. c4 {[%clk 0:01:25]}  g5 {[%clk 0:01:42]} 30. b4 {[%clk 0:01:18]}  Kf5 {[%clk 0:01:41]} 31. c5 {[%clk 0:01:17]}  bxc5 {[%clk 0:01:42]} 32. Rxc5 {[%clk 0:01:18]}  Rd1 {[%clk 0:01:40]} 33. Rc7 {[%clk 0:00:30]}  Rb1 {[%clk 0:01:38]} 34. Rxf7+ {[%clk 0:00:29]}  Ke6 {[%clk 0:01:37]} 35. Rg7 {[%clk 0:00:28]}  Kf6 {[%clk 0:01:36]} 36. Rb7 {[%clk 0:00:28]}  Rb2 {[%clk 0:01:36]} 37. g4 {[%clk 0:00:27]}  h3 {[%clk 0:01:36]} 38. Rb6+ {[%clk 0:00:26]}  Kg7 {[%clk 0:01:34]} 39. Ke4 {[%clk 0:00:27]}  Rxh2 {[%clk 0:01:33]} 40. Rb7+ {[%clk 0:00:22]}  Kg6 {[%clk 0:01:33]} 41. Rb6+ {[%clk 0:00:21]}  Kg7 {[%clk 0:01:33]} 42. Rb7+ {[%clk 0:00:21]}  Kh6 {[%clk 0:01:33]} 43. Rb8 {[%clk 0:00:18]}  Rh1 {[%clk 0:01:27]} 44. Kf5 {[%clk 0:00:16]}  Kg7 {[%clk 0:01:22]} 45. Rb7+ {[%clk 0:00:16]}  Kf8 {[%clk 0:01:20]} 46. Kxg5 {[%clk 0:00:16]}  Rf1 {[%clk 0:01:17]} 47. Rh7 {[%clk 0:00:17]}  Rxf3 {[%clk 0:01:17]} 48. b5 {[%clk 0:00:18]}  Rb3 {[%clk 0:01:14]} 49. b6 {[%clk 0:00:17]}  Kg8 {[%clk 0:01:11]} 50. Rh6 {[%clk 0:00:17]}  Kg7 {[%clk 0:01:09]} 51. b7 {[%clk 0:00:17]}  e4 {[%clk 0:00:55]} 52. Rxh3 {[%clk 0:00:17]}  Rxb7 {[%clk 0:00:55]} 53. Re3 {[%clk 0:00:18]}  Re7 {[%clk 0:00:55]} 54. Kf5 {[%clk 0:00:18]}  Rf7+ {[%clk 0:00:55]} 55. Kxe4 {[%clk 0:00:18]}  Kg6 {[%clk 0:00:56]} 56. Rf3 {[%clk 0:00:18]}  Re7+ {[%clk 0:00:57]} 57. Kf4 {[%clk 0:00:18]}  Rf7+ {[%clk 0:00:57]} 58. Kg3 {[%clk 0:00:19]}  Ra7 {[%clk 0:00:58]} 59. Rb3 {[%clk 0:00:19]}  Ra6 {[%clk 0:00:58]} 60. Kh4 {[%clk 0:00:19]}  Re6 {[%clk 0:00:58]} 61. Rb5 {[%clk 0:00:20]}  Ra6 {[%clk 0:00:59]} 62. Rd5 {[%clk 0:00:19]}  Ra1 {[%clk 0:00:59]} 63. Rd6+ {[%clk 0:00:19]}  Kg7 {[%clk 0:00:59]} 64. Kh5 {[%clk 0:00:19]}  Ra5+ {[%clk 0:00:59]} 65. g5 {[%clk 0:00:20]}  Ra7 {[%clk 0:01:00]} 66. Rc6 {[%clk 0:00:20]}  Rb7 {[%clk 0:01:00]} 67. Rh6 {[%clk 0:00:20]}  Rd7 {[%clk 0:01:00]} 68. Rg6+ {[%clk 0:00:21]}  Kh7 {[%clk 0:01:00]} 69. Ra6 {[%clk 0:00:22]}  Kg7 {[%clk 0:01:00]} 70. Re6 {[%clk 0:00:22]}  Rc7 {[%clk 0:01:00]} 71. Kg4 {[%clk 0:00:22]}  Rb7 {[%clk 0:01:01]} 72. Kf5 {[%clk 0:00:23]}  Rb5+ {[%clk 0:01:01]} 73. Kg4 {[%clk 0:00:23]}  Rb7 {[%clk 0:01:01]} 74. Re4 {[%clk 0:00:22]}  Rd7 {[%clk 0:01:01]} 75. Ra4 {[%clk 0:00:23]}  Rf7 {[%clk 0:01:01]} 76. Ra5 {[%clk 0:00:23]}  Rb7 {[%clk 0:01:02]} 77. Kf5 {[%clk 0:00:24]}  Rf7+ {[%clk 0:01:02]} 78. Kg4 {[%clk 0:00:24]}  Rb7 {[%clk 0:01:03]} 79. Kh5 {[%clk 0:00:25]}  Rc7 {[%clk 0:01:03]} 80. Ra6 {[%clk 0:00:25]}  Rd7 {[%clk 0:01:04]} 81. Rg6+ {[%clk 0:00:25]}  Kh7 {[%clk 0:01:04]} 82. Rf6 {[%clk 0:00:26]}  Kg7 {[%clk 0:01:05]} 83. Rg6+ {[%clk 0:00:23]} 1/2-1/2


[Site "https://www.chess.com"]

[Event "Titled Tuesday Blitz May 16 Late 2023"]
[White "Bartel, Mateusz"]
[Black "Potapova, Margarita"]
[WhiteFideId "1112635"]
[BlackFideId "14126869"]
[WhiteElo "2521"]
[BlackElo "2244"]
[Result "1-0"]
[Round "04"]
[TimeControl "180+2"]
[Date "2023.05.16"]
[WhiteClock "0:00:19"]
[BlackClock "0:00:39"]

1. Nf3 {[%clk 0:02:58]}  Nf6 {[%clk 0:02:57]} 2. c4 {[%clk 0:02:57]}  e6 {[%clk 0:02:57]} 3. g3 {[%clk 0:02:51]}  d5 {[%clk 0:02:57]} 4. Bg2 {[%clk 0:02:51]}  dxc4 {[%clk 0:02:56]} 5. Qa4+ {[%clk 0:02:50]}  Nbd7 {[%clk 0:02:56]} 6. Qxc4 {[%clk 0:02:50]}  a6 {[%clk 0:02:57]} 7. Qc2 {[%clk 0:02:44]}  c5 {[%clk 0:02:35]} 8. a4 {[%clk 0:02:40]}  b6 {[%clk 0:02:28]} 9. Ne5 {[%clk 0:02:23]}  Nd5 {[%clk 0:02:26]} 10. Nxd7 {[%clk 0:02:00]}  Qxd7 {[%clk 0:02:23]} 11. O-O {[%clk 0:01:59]}  Bb7 {[%clk 0:02:22]} 12. Nc3 {[%clk 0:01:58]}  Be7 {[%clk 0:02:20]} 13. d3 {[%clk 0:01:56]}  O-O {[%clk 0:02:19]} 14. Bd2 {[%clk 0:01:57]}  Nb4 {[%clk 0:02:18]} 15. Qb3 {[%clk 0:01:56]}  Bxg2 {[%clk 0:02:19]} 16. Kxg2 {[%clk 0:01:56]}  Rac8 {[%clk 0:02:10]} 17. Rfd1 {[%clk 0:01:50]}  Rfd8 {[%clk 0:02:01]} 18. Kg1 {[%clk 0:01:50]}  h5 {[%clk 0:01:54]} 19. Ne4 {[%clk 0:01:49]}  Nc6 {[%clk 0:01:51]} 20. Qxb6 {[%clk 0:01:42]}  Nd4 {[%clk 0:01:51]} 21. Qxa6 {[%clk 0:00:53]}  Nxe2+ {[%clk 0:01:22]} 22. Kf1 {[%clk 0:00:52]}  Nd4 {[%clk 0:01:23]} 23. Qc4 {[%clk 0:00:51]}  e5 {[%clk 0:01:22]} 24. Kg2 {[%clk 0:00:50]}  Qg4 {[%clk 0:01:22]} 25. Re1 {[%clk 0:00:29]}  Qf3+ {[%clk 0:01:18]} 26. Kg1 {[%clk 0:00:30]}  Ne2+ {[%clk 0:01:13]} 27. Kf1 {[%clk 0:00:23]}  Nd4 {[%clk 0:01:12]} 28. Kg1 {[%clk 0:00:21]}  h4 {[%clk 0:00:55]} 29. Re3 {[%clk 0:00:21]}  Qg4 {[%clk 0:00:52]} 30. Kg2 {[%clk 0:00:20]}  h3+ {[%clk 0:00:52]} 31. Kh1 {[%clk 0:00:19]}  Nf5 {[%clk 0:00:47]} 32. Nf6+ {[%clk 0:00:18]}  Bxf6 {[%clk 0:00:41]} 33. Qxg4 {[%clk 0:00:19]}  Nxe3 {[%clk 0:00:41]} 34. Bxe3 {[%clk 0:00:19]}  Rxd3 {[%clk 0:00:39]} 35. Qxc8+ {[%clk 0:00:19]} 1-0


[Site "https://www.chess.com"]

[Event "Titled Tuesday Blitz May 16 Late 2023"]
[White "Djokic, Mihailo"]
[Black "Perske, Thore"]
[WhiteFideId "976440"]
[BlackFideId "12902195"]
[WhiteElo "2294"]
[BlackElo "2336"]
[Result "1-0"]
[Round "04"]
[TimeControl "180+2"]
[Date "2023.05.16"]
[WhiteClock "0:00:07"]
[BlackClock "0:00:00"]

1. e4 {[%clk 0:03:00]}  e6 {[%clk 0:02:58]} 2. d4 {[%clk 0:03:01]}  d5 {[%clk 0:02:58]} 3. Nc3 {[%clk 0:03:01]}  Bb4 {[%clk 0:02:58]} 4. e5 {[%clk 0:03:02]}  c5 {[%clk 0:02:58]} 5. a3 {[%clk 0:03:02]}  Bxc3+ {[%clk 0:02:58]} 6. bxc3 {[%clk 0:03:03]}  Qa5 {[%clk 0:02:59]} 7. Bd2 {[%clk 0:03:02]}  Qa4 {[%clk 0:02:59]} 8. Qb1 {[%clk 0:03:02]}  c4 {[%clk 0:02:59]} 9. Nh3 {[%clk 0:03:01]}  Nc6 {[%clk 0:02:59]} 10. Nf4 {[%clk 0:02:59]}  Nge7 {[%clk 0:02:58]} 11. g3 {[%clk 0:02:58]}  Bd7 {[%clk 0:02:58]} 12. h4 {[%clk 0:02:57]}  O-O-O {[%clk 0:02:56]} 13. Bh3 {[%clk 0:02:57]}  h6 {[%clk 0:02:49]} 14. Nh5 {[%clk 0:02:55]}  Rhg8 {[%clk 0:02:45]} 15. O-O {[%clk 0:02:51]}  b6 {[%clk 0:02:45]} 16. Kh2 {[%clk 0:02:51]}  Rdf8 {[%clk 0:02:43]} 17. Qc1 {[%clk 0:02:42]}  Kc7 {[%clk 0:02:40]} 18. Bf4 {[%clk 0:02:38]}  Kc8 {[%clk 0:02:39]} 19. Qd2 {[%clk 0:02:35]}  Ng6 {[%clk 0:02:34]} 20. Be3 {[%clk 0:02:29]}  Nge7 {[%clk 0:02:34]} 21. g4 {[%clk 0:02:25]}  Ng6 {[%clk 0:02:28]} 22. Kg3 {[%clk 0:02:22]}  Nce7 {[%clk 0:02:15]} 23. f4 {[%clk 0:02:16]}  f5 {[%clk 0:02:07]} 24. exf6 {[%clk 0:02:16]}  gxf6 {[%clk 0:02:07]} 25. f5 {[%clk 0:02:16]}  exf5 {[%clk 0:02:03]} 26. Bxh6 {[%clk 0:02:17]}  fxg4 {[%clk 0:01:30]} 27. Bxf8 {[%clk 0:02:11]}  gxh3 {[%clk 0:01:11]} 28. Bxe7 {[%clk 0:01:42]}  Nxe7+ {[%clk 0:01:06]} 29. Kf4 {[%clk 0:01:34]}  Rg2 {[%clk 0:00:17]} 30. Rf2 {[%clk 0:01:21]}  Ng6+ {[%clk 0:00:17]} 31. Ke3 {[%clk 0:01:20]}  Nxh4 {[%clk 0:00:10]} 32. Rxg2 {[%clk 0:01:10]}  Nxg2+ {[%clk 0:00:10]} 33. Kf2 {[%clk 0:01:09]}  Qc6 {[%clk 0:00:10]} 34. Qh6 {[%clk 0:01:04]}  Qe6 {[%clk 0:00:06]} 35. Kg1 {[%clk 0:00:45]}  Qf5 {[%clk 0:00:03]} 36. Nxf6 {[%clk 0:00:37]}  Be6 {[%clk 0:00:03]} 37. Qf8+ {[%clk 0:00:35]}  Kb7 {[%clk 0:00:04]} 38. Qg7+ {[%clk 0:00:28]}  Ka6 {[%clk 0:00:04]} 39. Rf1 {[%clk 0:00:11]}  Qxc2 {[%clk 0:00:04]} 40. Qg3 {[%clk 0:00:08]}  Bf5 {[%clk 0:00:02]} 41. Nxd5 {[%clk 0:00:07]}  Bd3 {[%clk 0:00:02]} 42. Nb4+ {[%clk 0:00:07]}  Kb5 {[%clk 0:00:02]} 43. Nxc2 {[%clk 0:00:08]}  Bxf1 {[%clk 0:00:00]} 44. Kxf1 {[%clk 0:00:07]} 1-0


[Site "https://www.chess.com"]

[Event "Titled Tuesday Blitz May 16 Late 2023"]
[White "Golubev, Mikhail"]
[Black "Csonka, Balazs"]
[WhiteFideId "14100983"]
[BlackFideId "742910"]
[WhiteElo "2374"]
[BlackElo "2404"]
[Result "0-1"]
[Round "04"]
[TimeControl "180+2"]
[Date "2023.05.16"]
[WhiteClock "0:00:00"]
[BlackClock "0:00:47"]

1. e4 {[%clk 0:03:00]}  e6 {[%clk 0:03:00]} 2. d4 {[%clk 0:02:59]}  d5 {[%clk 0:03:00]} 3. Nc3 {[%clk 0:02:59]}  Nf6 {[%clk 0:02:59]} 4. exd5 {[%clk 0:02:57]}  exd5 {[%clk 0:02:57]} 5. Bg5 {[%clk 0:02:55]}  Be7 {[%clk 0:02:52]} 6. Bd3 {[%clk 0:02:54]}  O-O {[%clk 0:02:50]} 7. Nge2 {[%clk 0:02:54]}  c6 {[%clk 0:02:42]} 8. Qd2 {[%clk 0:02:52]}  Nbd7 {[%clk 0:02:38]} 9. O-O-O {[%clk 0:02:49]}  b5 {[%clk 0:02:38]} 10. Ng3 {[%clk 0:02:43]}  Nb6 {[%clk 0:02:30]} 11. Rhe1 {[%clk 0:02:00]}  Be6 {[%clk 0:02:04]} 12. Nce2 {[%clk 0:01:05]}  Nc4 {[%clk 0:01:32]} 13. Bxc4 {[%clk 0:01:05]}  bxc4 {[%clk 0:01:33]} 14. Nf4 {[%clk 0:01:05]}  Rb8 {[%clk 0:01:26]} 15. Nxe6 {[%clk 0:00:25]}  fxe6 {[%clk 0:01:27]} 16. Rxe6 {[%clk 0:00:25]}  Qb6 {[%clk 0:01:28]} 17. c3 {[%clk 0:00:25]}  Ba3 {[%clk 0:01:28]} 18. Qc2 {[%clk 0:00:13]}  Bxb2+ {[%clk 0:01:27]} 19. Kd2 {[%clk 0:00:13]}  Ne4+ {[%clk 0:00:56]} 20. Nxe4 {[%clk 0:00:12]}  dxe4 {[%clk 0:00:57]} 21. Be3 {[%clk 0:00:11]}  Qa5 {[%clk 0:00:50]} 22. Rxc6 {[%clk 0:00:08]}  Bxc3+ {[%clk 0:00:47]} 23. Ke2 {[%clk 0:00:08]}  Rb2 {[%clk 0:00:46]} 24. Qxb2 {[%clk 0:00:00]}  Bxb2 {[%clk 0:00:47]} 0-1


[Site "https://www.chess.com"]

[Event "Titled Tuesday Blitz May 16 Late 2023"]
[White "Goltsev, Dmitry"]
[Black "Taboas Rodriguez, Daniel"]
[WhiteFideId "24176710"]
[BlackFideId "2208466"]
[WhiteElo "2356"]
[BlackElo "2365"]
[Result "1-0"]
[Round "04"]
[TimeControl "180+2"]
[Date "2023.05.16"]
[WhiteClock "0:02:42"]
[BlackClock "0:02:06"]

1. e4 {[%clk 0:03:00]}  e5 {[%clk 0:02:59]} 2. Nf3 {[%clk 0:03:00]}  Nc6 {[%clk 0:02:59]} 3. Bb5 {[%clk 0:03:00]}  Nf6 {[%clk 0:02:59]} 4. O-O {[%clk 0:03:00]}  Nxe4 {[%clk 0:02:59]} 5. d4 {[%clk 0:03:00]}  Nd6 {[%clk 0:02:59]} 6. Bxc6 {[%clk 0:03:00]}  dxc6 {[%clk 0:03:00]} 7. dxe5 {[%clk 0:03:01]}  Nf5 {[%clk 0:03:00]} 8. Qxd8+ {[%clk 0:03:01]}  Kxd8 {[%clk 0:03:01]} 9. Re1 {[%clk 0:03:02]}  Be7 {[%clk 0:02:55]} 10. Bg5 {[%clk 0:03:00]}  Be6 {[%clk 0:02:52]} 11. Nc3 {[%clk 0:02:59]}  Ke8 {[%clk 0:02:50]} 12. b3 {[%clk 0:02:55]}  Rd8 {[%clk 0:02:50]} 13. Rad1 {[%clk 0:02:54]}  h6 {[%clk 0:02:47]} 14. Bxe7 {[%clk 0:02:55]}  Kxe7 {[%clk 0:02:47]} 15. g4 {[%clk 0:02:54]}  a5 {[%clk 0:02:20]} 16. gxf5 {[%clk 0:02:50]}  Bxf5 {[%clk 0:02:21]} 17. Nd4 {[%clk 0:02:46]}  Bg4 {[%clk 0:02:12]} 18. f3 {[%clk 0:02:44]}  Bc8 {[%clk 0:02:09]} 19. Ne4 {[%clk 0:02:43]}  b6 {[%clk 0:02:06]} 20. Nxc6+ {[%clk 0:02:42]} 1-0


[Site "https://www.chess.com"]

[Event "Titled Tuesday Blitz May 16 Late 2023"]
[White "Vakhlamov, Igor L."]
[Black "Safin, Robert"]
[WhiteFideId "24126748"]
[BlackFideId "34189120"]
[WhiteElo "2407"]
[BlackElo "2295"]
[Result "1-0"]
[Round "04"]
[TimeControl "180+2"]
[Date "2023.05.16"]
[WhiteClock "0:01:06"]
[BlackClock "0:00:10"]

1. e4 {[%clk 0:02:59]}  c6 {[%clk 0:02:59]} 2. d4 {[%clk 0:02:59]}  d5 {[%clk 0:03:00]} 3. exd5 {[%clk 0:02:59]}  cxd5 {[%clk 0:03:01]} 4. c4 {[%clk 0:03:00]}  Nf6 {[%clk 0:03:00]} 5. Nc3 {[%clk 0:02:59]}  e6 {[%clk 0:03:00]} 6. c5 {[%clk 0:02:58]}  Be7 {[%clk 0:02:51]} 7. Bb5+ {[%clk 0:02:58]}  Bd7 {[%clk 0:02:50]} 8. Bxd7+ {[%clk 0:02:58]}  Nbxd7 {[%clk 0:02:46]} 9. Rb1 {[%clk 0:02:52]}  O-O {[%clk 0:02:42]} 10. Nf3 {[%clk 0:02:51]}  Ne4 {[%clk 0:02:42]} 11. O-O {[%clk 0:02:51]}  Nxc3 {[%clk 0:02:39]} 12. bxc3 {[%clk 0:02:52]}  b6 {[%clk 0:02:39]} 13. c6 {[%clk 0:02:23]}  Nb8 {[%clk 0:02:38]} 14. Qa4 {[%clk 0:02:18]}  Qc7 {[%clk 0:02:26]} 15. Ne5 {[%clk 0:02:17]}  Rc8 {[%clk 0:01:58]} 16. Bf4 {[%clk 0:02:05]}  Nxc6 {[%clk 0:01:57]} 17. Rbc1 {[%clk 0:01:42]}  Nxe5 {[%clk 0:01:51]} 18. Bxe5 {[%clk 0:01:43]}  Bd6 {[%clk 0:01:51]} 19. Rfe1 {[%clk 0:01:44]}  Bxe5 {[%clk 0:01:51]} 20. Rxe5 {[%clk 0:01:45]}  Qc4 {[%clk 0:01:46]} 21. Qc2 {[%clk 0:01:44]}  Rc7 {[%clk 0:01:39]} 22. f4 {[%clk 0:01:31]}  g6 {[%clk 0:01:31]} 23. g4 {[%clk 0:01:26]}  Rac8 {[%clk 0:01:27]} 24. Qd2 {[%clk 0:01:25]}  b5 {[%clk 0:00:24]} 25. f5 {[%clk 0:01:25]}  b4 {[%clk 0:00:20]} 26. f6 {[%clk 0:01:05]}  bxc3 {[%clk 0:00:20]} 27. Qh6 {[%clk 0:01:05]}  Qxd4+ {[%clk 0:00:10]} 28. Kh1 {[%clk 0:01:06]} 1-0


[Site "https://www.chess.com"]

[Event "Titled Tuesday Blitz May 16 Late 2023"]
[White "Grycel, Kamil"]
[Black "Rastbod, Ali"]
[WhiteFideId "1115499"]
[BlackFideId "12567477"]
[WhiteElo "2522"]
[BlackElo "2274"]
[Result "0-1"]
[Round "04"]
[TimeControl "180+2"]
[Date "2023.05.16"]
[WhiteClock "0:00:11"]
[BlackClock "0:00:18"]

1. d4 {[%clk 0:03:00]}  d5 {[%clk 0:02:58]} 2. Bf4 {[%clk 0:03:00]}  c5 {[%clk 0:02:56]} 3. c3 {[%clk 0:02:59]}  Qb6 {[%clk 0:02:55]} 4. Qb3 {[%clk 0:02:58]}  Nc6 {[%clk 0:02:53]} 5. e3 {[%clk 0:02:57]}  c4 {[%clk 0:02:41]} 6. Qc2 {[%clk 0:02:56]}  g6 {[%clk 0:02:42]} 7. Nd2 {[%clk 0:02:54]}  Bf5 {[%clk 0:02:38]} 8. Qc1 {[%clk 0:02:54]}  Nf6 {[%clk 0:02:38]} 9. h3 {[%clk 0:02:52]}  Qd8 {[%clk 0:02:38]} 10. b3 {[%clk 0:02:37]}  b5 {[%clk 0:02:37]} 11. Ngf3 {[%clk 0:02:24]}  Bg7 {[%clk 0:02:33]} 12. Be2 {[%clk 0:02:21]}  O-O {[%clk 0:02:19]} 13. O-O {[%clk 0:02:21]}  a6 {[%clk 0:02:01]} 14. Ne5 {[%clk 0:02:08]}  Qb6 {[%clk 0:02:00]} 15. bxc4 {[%clk 0:01:33]}  dxc4 {[%clk 0:01:58]} 16. Bf3 {[%clk 0:01:30]}  Nxe5 {[%clk 0:01:48]} 17. dxe5 {[%clk 0:01:27]}  Nd7 {[%clk 0:01:48]} 18. Bxa8 {[%clk 0:01:26]}  Rxa8 {[%clk 0:01:48]} 19. e4 {[%clk 0:01:13]}  Be6 {[%clk 0:01:45]} 20. Be3 {[%clk 0:01:13]}  Qc6 {[%clk 0:01:30]} 21. f4 {[%clk 0:01:12]}  Nc5 {[%clk 0:01:30]} 22. Bxc5 {[%clk 0:01:04]}  Qxc5+ {[%clk 0:01:31]} 23. Kh1 {[%clk 0:00:58]}  g5 {[%clk 0:01:25]} 24. f5 {[%clk 0:00:55]}  Bc8 {[%clk 0:01:23]} 25. f6 {[%clk 0:00:54]}  exf6 {[%clk 0:01:19]} 26. exf6 {[%clk 0:00:54]}  Bf8 {[%clk 0:01:20]} 27. Nf3 {[%clk 0:00:50]}  h6 {[%clk 0:01:19]} 28. e5 {[%clk 0:00:20]}  Bb7 {[%clk 0:00:55]} 29. e6 {[%clk 0:00:17]}  fxe6 {[%clk 0:00:56]} 30. f7+ {[%clk 0:00:14]}  Kg7 {[%clk 0:00:53]} 31. Qe1 {[%clk 0:00:14]}  Qe7 {[%clk 0:00:17]} 32. Qe5+ {[%clk 0:00:13]}  Qf6 {[%clk 0:00:17]} 33. Qc7 {[%clk 0:00:08]}  Qe7 {[%clk 0:00:16]} 34. Qe5+ {[%clk 0:00:05]}  Qf6 {[%clk 0:00:16]} 35. Qxf6+ {[%clk 0:00:04]}  Kxf6 {[%clk 0:00:16]} 36. Nd4+ {[%clk 0:00:05]}  Ke7 {[%clk 0:00:14]} 37. Rae1 {[%clk 0:00:06]}  Bd5 {[%clk 0:00:15]} 38. Nf5+ {[%clk 0:00:06]}  Kd7 {[%clk 0:00:16]} 39. Ne3 {[%clk 0:00:05]}  Bg7 {[%clk 0:00:06]} 40. Rd1 {[%clk 0:00:04]}  Kc6 {[%clk 0:00:06]} 41. Nxd5 {[%clk 0:00:03]}  exd5 {[%clk 0:00:07]} 42. Rde1 {[%clk 0:00:03]}  Rf8 {[%clk 0:00:07]} 43. Re8 {[%clk 0:00:03]}  d4 {[%clk 0:00:07]} 44. cxd4 {[%clk 0:00:02]}  Kd5 {[%clk 0:00:07]} 45. Rf5+ {[%clk 0:00:01]}  Kxd4 {[%clk 0:00:07]} 46. Rxf8 {[%clk 0:00:01]}  Bxf8 {[%clk 0:00:08]} 47. Rf6 {[%clk 0:00:01]}  c3 {[%clk 0:00:08]} 48. Rc6 {[%clk 0:00:02]}  Kd3 {[%clk 0:00:09]} 49. Rc8 {[%clk 0:00:02]}  Ba3 {[%clk 0:00:09]} 50. f8=Q {[%clk 0:00:01]}  Bxf8 {[%clk 0:00:10]} 51. Rxf8 {[%clk 0:00:02]}  c2 {[%clk 0:00:10]} 52. Rc8 {[%clk 0:00:02]}  Kd2 {[%clk 0:00:10]} 53. Kh2 {[%clk 0:00:03]}  c1=Q {[%clk 0:00:10]} 54. Rxc1 {[%clk 0:00:04]}  Kxc1 {[%clk 0:00:11]} 55. Kg3 {[%clk 0:00:04]}  Kb2 {[%clk 0:00:12]} 56. Kg4 {[%clk 0:00:05]}  Kxa2 {[%clk 0:00:12]} 57. Kh5 {[%clk 0:00:06]}  b4 {[%clk 0:00:13]} 58. Kxh6 {[%clk 0:00:07]}  b3 {[%clk 0:00:13]} 59. Kxg5 {[%clk 0:00:08]}  b2 {[%clk 0:00:14]} 60. h4 {[%clk 0:00:09]}  b1=Q {[%clk 0:00:15]} 61. h5 {[%clk 0:00:10]}  Qh7 {[%clk 0:00:15]} 62. h6 {[%clk 0:00:11]}  Kb3 {[%clk 0:00:16]} 63. g4 {[%clk 0:00:11]}  Kc4 {[%clk 0:00:15]} 64. Kh5 {[%clk 0:00:11]}  Kd5 {[%clk 0:00:16]} 65. g5 {[%clk 0:00:12]}  Qf5 {[%clk 0:00:16]} 66. h7 {[%clk 0:00:12]}  Qxh7+ {[%clk 0:00:16]} 67. Kg4 {[%clk 0:00:13]}  Qg6 {[%clk 0:00:17]} 68. Kh4 {[%clk 0:00:11]}  a5 {[%clk 0:00:18]} 0-1


[Site "https://www.chess.com"]

[Event "Titled Tuesday Blitz May 16 Late 2023"]
[White "Sun, Rick"]
[Black "Jovic, Stanoje"]
[WhiteFideId "30909481"]
[BlackFideId "905020"]
[WhiteElo "2169"]
[BlackElo "2236"]
[Result "1-0"]
[Round "04"]
[TimeControl "180+2"]
[Date "2023.05.16"]
[WhiteClock "0:00:08"]
[BlackClock "0:00:00"]

1. d4 {[%clk 0:03:00]}  Nf6 {[%clk 0:02:59]} 2. Nc3 {[%clk 0:03:01]}  d5 {[%clk 0:02:59]} 3. Bf4 {[%clk 0:03:01]}  e6 {[%clk 0:02:58]} 4. e3 {[%clk 0:03:02]}  Bd6 {[%clk 0:02:56]} 5. Nf3 {[%clk 0:03:00]}  O-O {[%clk 0:02:55]} 6. Bd3 {[%clk 0:02:59]}  b6 {[%clk 0:02:49]} 7. O-O {[%clk 0:02:54]}  c5 {[%clk 0:02:49]} 8. dxc5 {[%clk 0:02:38]}  bxc5 {[%clk 0:02:46]} 9. Bg5 {[%clk 0:02:15]}  c4 {[%clk 0:02:38]} 10. Be2 {[%clk 0:02:13]}  Bb7 {[%clk 0:02:35]} 11. e4 {[%clk 0:01:46]}  dxe4 {[%clk 0:02:30]} 12. Nd2 {[%clk 0:01:45]}  Qc7 {[%clk 0:02:19]} 13. h3 {[%clk 0:01:29]}  Bd5 {[%clk 0:02:17]} 14. Bxf6 {[%clk 0:01:25]}  gxf6 {[%clk 0:02:16]} 15. Ndxe4 {[%clk 0:01:25]}  Bh2+ {[%clk 0:02:04]} 16. Kh1 {[%clk 0:01:24]}  Be5 {[%clk 0:02:04]} 17. Nxd5 {[%clk 0:01:00]}  exd5 {[%clk 0:01:55]} 18. Qxd5 {[%clk 0:01:01]}  Nd7 {[%clk 0:01:48]} 19. c3 {[%clk 0:00:40]}  Nb6 {[%clk 0:01:45]} 20. Qd2 {[%clk 0:00:40]}  Bf4 {[%clk 0:01:35]} 21. Nxf6+ {[%clk 0:00:37]}  Kh8 {[%clk 0:01:33]} 22. Qc2 {[%clk 0:00:36]}  Kg7 {[%clk 0:01:28]} 23. Nh5+ {[%clk 0:00:28]}  Kh8 {[%clk 0:01:24]} 24. Qf5 {[%clk 0:00:24]}  Be5 {[%clk 0:00:59]} 25. Nf6 {[%clk 0:00:20]}  Bxf6 {[%clk 0:00:57]} 26. Qxf6+ {[%clk 0:00:20]}  Kg8 {[%clk 0:00:56]} 27. Qg5+ {[%clk 0:00:21]}  Kh8 {[%clk 0:00:56]} 28. Qf6+ {[%clk 0:00:22]}  Kg8 {[%clk 0:00:56]} 29. Bf3 {[%clk 0:00:23]}  Rad8 {[%clk 0:00:50]} 30. Qg5+ {[%clk 0:00:22]}  Kh8 {[%clk 0:00:50]} 31. Qf6+ {[%clk 0:00:23]}  Kg8 {[%clk 0:00:50]} 32. Rad1 {[%clk 0:00:24]}  Nd7 {[%clk 0:00:45]} 33. Qg5+ {[%clk 0:00:19]}  Kh8 {[%clk 0:00:45]} 34. Qe7 {[%clk 0:00:14]}  Rfe8 {[%clk 0:00:35]} 35. Qxf7 {[%clk 0:00:14]}  Rf8 {[%clk 0:00:34]} 36. Qe7 {[%clk 0:00:13]}  Rfe8 {[%clk 0:00:35]} 37. Qh4 {[%clk 0:00:12]}  Ne5 {[%clk 0:00:31]} 38. Be4 {[%clk 0:00:12]}  Rxd1 {[%clk 0:00:27]} 39. Rxd1 {[%clk 0:00:13]}  Qg7 {[%clk 0:00:27]} 40. g3 {[%clk 0:00:10]}  Nd3 {[%clk 0:00:25]} 41. Bxd3 {[%clk 0:00:08]}  cxd3 {[%clk 0:00:26]} 42. Rxd3 {[%clk 0:00:09]}  Qb7+ {[%clk 0:00:20]} 43. Kh2 {[%clk 0:00:08]}  Rf8 {[%clk 0:00:18]} 44. Qd4+ {[%clk 0:00:08]}  Kg8 {[%clk 0:00:18]} 45. Rd2 {[%clk 0:00:08]}  Qf7 {[%clk 0:00:16]} 46. a4 {[%clk 0:00:07]}  a5 {[%clk 0:00:15]} 47. b4 {[%clk 0:00:07]}  axb4 {[%clk 0:00:13]} 48. cxb4 {[%clk 0:00:08]}  Rc8 {[%clk 0:00:13]} 49. a5 {[%clk 0:00:07]}  Rc4 {[%clk 0:00:12]} 50. Qd8+ {[%clk 0:00:08]}  Kg7 {[%clk 0:00:00]} 51. Rd7 {[%clk 0:00:08]} 1-0


[Site "https://www.chess.com"]